Cogmind - Beta 11.1 @@@ ROGUE MODE // 2022.06.02 @ 19:18:03 Player: RNGesus Result: Destroyed by D-53 Grenadier with Mini Grenade Launcher Performance ------------- Evolutions (0) 0 Regions Visited (2) 400 Robots Destroyed (21) 105 Value Destroyed (513) 513 Prototype IDs (3) 60 Alien Tech Used (0) 0 Bonus (0) 0 TOTAL SCORE: 1078 Bonus ------- None Cogmind --------- Core Integrity 0/250 Matter 219/300 Energy 265/265 System Corruption 0% Temperature Cool (0) Movement Treading (320) Ox2 Location -10/Mines Parts ------- > --- POWER (1) -------- Improved Ion Engine > --- PROPULSION (2) --- Light Treads Improved Treads > --- UTILITY (2) ------ Huge Storage Unit Targeting Computer > --- WEAPON (2) ------- Medium Laser > --- INVENTORY (25) --- Improved Ion Engine Light Treads Light Treads Improved Treads Improved Treads Medium Storage Unit Machine Analyzer Hacking Suite Heavy EM Pulse Gun Heavy EM Pulse Gun Small Laser Grenade Launcher Rocket Launcher Rocket Launcher Peak State ------------ > --- POWER ------------ Improved Ion Engine > --- PROPULSION ------- Improved Treads Improved Treads > --- UTILITY ---------- Huge Storage Unit Targeting Computer > --- WEAPON ----------- Assault Rifle Rocket Launcher > --- INVENTORY -------- Improved Ion Engine Improved Ion Engine Improved Treads Improved Treads Medium Storage Unit Machine Analyzer Hacking Suite Heavy EM Pulse Gun Heavy EM Pulse Gun Medium Laser Small Laser Grenade Launcher Rocket Launcher [Rating: 13] Favorites ----------- Power Improved Ion Engine Engine Improved Ion Engine Propulsion Light Treads Treads Light Treads Utility Targeting Computer Storage Medium Storage Unit Processor Targeting Computer Weapon Assault Rifle Energy Gun Small Laser Ballistic Gun Assault Rifle Launcher Rocket Launcher Build | -11 -10 -10 ------- Run | Scr Mat Min Slots Evolved . | . . . Power . | . . . Propulsion . | . . . Utility . | . . . Weapon . | . . . Parts Attached 19 | 6 8 5 Power 3 | 1 1 1 Engine 3 | 1 1 1 Core . | . . . Reactor . | . . . Propulsion 5 | 2 2 1 Treads 5 | 2 2 1 Leg . | . . . Wheel . | . . . Hover . | . . . Flight . | . . . Utility 4 | 1 3 . Device . | . . . Storage 3 | 1 2 . Processor 1 | . 1 . Hackware . | . . . Protection . | . . . Artifact . | . . . Weapon 7 | 2 2 3 Energy Gun 3 | 1 1 1 Energy Cannon . | . . . Ballistic Gun 2 | 1 . 1 Ballistic Cannon . | . . . Launcher 2 | . 1 1 Special Weapon . | . . . Impact Weapon . | . . . Slashing Weapon . | . . . Piercing Weapon . | . . . Special Melee Weapon . | . . . Unidentified Prototypes . | . . . Parts Lost 4 | . . 4 Power 1 | . . 1 Propulsion 1 | . . 1 Utility . | . . . Weapon 2 | . . 2 Highest Loss Streak 3 | . . 3 To Critical Strikes . | . . . Average Slot Usage (%) 93 | . 91 99 Engine 13 | . 14 13 Treads 28 | . 28 28 Storage 14 | . 14 14 Processor 7 | . 5 14 Energy Gun 13 | . 14 11 Ballistic Gun 14 | . 14 15 Naked Turns . | . . . Heaviest Build 91 | 13 91 90 Greatest Support 46 | 40 46 46 Greatest Overweight (x) 2 | . 1 2 Average Overweight (x) . | . . 1 Largest Inventory Capacity 25 | 8 25 25 Average Capacity 16 | 7 14 25 Most Carried 15 | 2 15 15 Average Carried 9 | 1 8 14 Final Capacity 25 | 8 25 25 Final Carried 15 | 2 15 14 Class Distribution -------------------- 100% | Mutant Dominant Class ---------------- Mutant | -10/Materials Mutant | -10/Mines Resources | -11 -10 -10 ----------- Run | Scr Mat Min Matter Collected 506 | 240 266 . Remotely . | . . . Salvage Created 669 | . 535 134 Parts 42 | . 29 13 Haulers Intercepted 2 | . 2 . Recyclers Shooed 1 | . 1 . Parts Field Recycled . | . . . Retrieved Matter . | . . . Parts Self-Destructed . | . . . Prevented . | . . . Kills | -11 -10 -10 ------- Run | Scr Mat Min Combat Hostiles Destroyed 17 | . 12 5 Guns 11 | . 9 2 AOE 6 | . 3 3 Classes Destroyed 6 | . 5 1 Worker 1 | . 1 . Hauler 2 | . 2 . Operator 1 | . 1 . Swarmer 6 | . 3 3 Grunt 9 | . 9 . Sentry 2 | . . 2 Best Kill Streak 3 | . 3 3 Combat Bots Only 3 | . 3 3 Max Kills in Single Turn 2 | . 2 2 Gunslinging . | . . . Exploded 2 | . 2 2 Melee . | . . . Uniques/NPCs Destroyed . | . . . Combat | -11 -10 -10 -------- Run | Scr Mat Min Damage Taken 1098 | . 461 637 Core 286 | . 165 121 Absorbed by Shields . | . . . Core Remaining (%) 100 | 100 . . Volleys Fired 63 | . 50 13 Largest 2 | . 2 2 Hottest 70 | . 70 70 Shots Fired 122 | . 98 24 Gun 118 | . 96 22 Cannon . | . . . Launcher 4 | . 2 2 Special . | . . . Kinetic 65 | . 48 17 Thermal 53 | . 48 5 Explosive 4 | . 2 2 Electromagnetic . | . . . Robot Hit Streak 18 | . 18 15 Robot Miss Streak 2 | . 2 1 Penetration Max . | . . . Secondary Targets 1 | . . 1 Max Gunslinging Chain 1 | . . 1 Shots Hit Robots 91 | . 74 17 Core Hits 37 | . 30 7 Critical Kills . | . . . Critical Parts Destroyed . | . . . Critical Strikes 1 | . . 1 Burn 1 | . . 1 Melee Attacks . | . . . Impact . | . . . Slashing . | . . . Piercing . | . . . Sneak Attacks . | . . . Combat Hostiles . | . . . Follow-up Attacks . | . . . Damage Inflicted 1484 | . 1152 332 Guns 1110 | . 932 178 Cannons . | . . . Explosions 374 | . 220 154 Melee . | . . . Ramming . | . . . Kinetic 616 | . 500 116 Thermal 494 | . 432 62 Explosive 374 | . 220 154 Electromagnetic . | . . . Impact . | . . . Slashing . | . . . Piercing . | . . . Highest Corruption . | . . . Average Corruption . | . . . Corruption Purged . | . . . Corruption Blocked . | . . . Overload Shots . | . . . Overflow Damage 45 | . 10 35 Projectiles . | . . . Explosions 45 | . 10 35 Melee . | . . . Knockbacks . | . . . Impact . | . . . Kinetic . | . . . Secondary . | . . . Self-Inflicted Damage 30 | . . 30 Shots 1 | . . 1 Rammed . | . . . Targets Rammed . | . . . Kicked . | . . . Crushed . | . . . Highest Temperature 148 | . 72 148 Average Temperature 30 | . 25 51 Received Heat Transfer 420 | . 222 198 Siege Activations . | . . . Robots Corrupted . | . . . Combat Hostiles . | . . . Parts Fried . | . . . Impact Corruptions . | . . . Robots Melted . | . . . Combat Hostiles . | . . . Parts Melted 2 | . 2 . Heat Transferred 1280 | . 1021 259 Parts Sabotaged . | . . . Parts Stolen . | . . . Parts Stripped . | . . . Power Chain Reactions . | . . . Missiles Intercepted . | . . . Alert | -11 -10 -10 ------- Run | Scr Mat Min Peak Influence 322 | . 322 227 Initial 84 | . . 84 Average 140 | . 124 221 Maximum Alert Level 1 | . 1 1 Low Security (%) 71 | 100 89 4 Level 1 28 | . 10 95 Level 2 . | . . . Level 3 . | . . . Level 4 . | . . . Level 5 . | . . . High Security . | . . . Max Security . | . . . Squads Dispatched 2 | . 2 . Investigation 1 | . 1 . Extermination . | . . . Reinforcement 1 | . 1 . Assault . | . . . Garrison . | . . . Intercept . | . . . Searches Triggered . | . . . Construction Impeded . | . . . Haulers Reinforced . | . . . Active Scanning Responses . | . . . Cargo Convoy Interrupts . | . . . Stealth | -11 -10 -10 --------- Run | Scr Mat Min Distress Signals . | . . . Communications Jammed . | . . . Distress Signals . | . . . Times Spotted 31 | . 24 7 Peak Tracking Total 3 | . 3 3 Tactical Retreats . | . . . Traps | -11 -10 -10 ------- Run | Scr Mat Min Traps Triggered . | . . . Indirectly . | . . . Trap Hack Attempts . | . . . Triggered . | . . . Disarmed . | . . . Reprogrammed . | . . . Reused . | . . . Traps Extracted . | . . . Installed . | . . . Triggered . | . . . Machines | -11 -10 -10 ---------- Run | Scr Mat Min Machines Disabled 1 | . . 1 Max in Single Turn 1 | . . 1 Machines Sabotaged . | . . . Garrisons Compromised . | . . . Overloaded Fab Kills . | . . . Hacking | -11 -10 -10 --------- Run | Scr Mat Min Machines Accessed 6 | . 6 . Terminals 5 | . 5 . Fabricators . | . . . Repair Stations . | . . . Recycling Units 1 | . 1 . Scanalyzers . | . . . Garrison Access . | . . . Total Hacks 15 | . 15 . Successful 8 | . 8 . Failed 7 | . 7 . Catastrophic . | . . . Database Lockouts . | . . . Manual 12 | . 12 . Terminals 14 | . 14 . Fabricators . | . . . Repair Stations . | . . . Recycling Units 1 | . 1 . Scanalyzers . | . . . Garrison Access . | . . . Terminal Hacks 6 | . 6 . Part Schematic 2 | . 2 . Robot Analysis 2 | . 2 . Prototype ID Bank 1 | . 1 . Zone Layout 1 | . 1 . Fabricator Hacks . | . . . Repair Station Hacks . | . . . Recycling Unit Hacks . | . . . Scanalyzer . | . . . Garrison Access Hacks . | . . . Unauthorized Hacks 2 | . 2 . Terminals 1 | . 1 . Operators 1 | . 1 . Fabricators . | . . . Repair Stations . | . . . Recycling Units 1 | . 1 . Tunnel 1 | . 1 . Scanalyzers . | . . . Garrison Access . | . . . Data Cores Recovered . | . . . Used . | . . . Hacking Detections 4 | . 4 . Full Trace Events 1 | . 1 . Feedback Events . | . . . Feedback Blocked . | . . . Robot Schematics Acquired . | . . . Robots Built . | . . . Authchips . | . . . Time . | . . . Total Robot Build Rating . | . . . Part Schematics Acquired 2 | . 2 . Parts Built . | . . . Authchips . | . . . Time . | . . . Total Part Build Rating . | . . . Parts Repaired . | . . . Time . | . . . Parts Recycled . | . . . Recycled Matter . | . . . Retrieved Matter . | . . . Retrieved Components . | . . . Parts Scanalyzed . | . . . Part Schematics Acquired . | . . . Parts Damaged . | . . . Bothacking | -11 -10 -10 ------------ Run | Scr Mat Min Used RIF Installer . | . . . Robots Hacked . | . . . Non-combat . | . . . Combat . | . . . Robot Hacks Applied . | . . . Relay Couplers Released . | . . . Fabnet Peak Effective % . | . . . Robots Rewired . | . . . Allies Hacked . | . . . Hacks Repelled . | . . . Allies | -11 -10 -10 -------- Run | Scr Mat Min Total Allies . | . . . Largest Group . | . . . Highest-Rated Group . | . . . Highest-Rated Ally . | . . . Total Orders . | . . . Ally Attacks . | . . . Total Damage . | . . . Kills . | . . . Allies Corrupted . | . . . Allies Melted . | . . . Intel | -11 -10 -10 ------- Run | Scr Mat Min Robot Analysis Total 2 | . 2 . Derelict Logs Recovered . | . . . Drone Launches . | . . . Drone Recoveries . | . . . Exploration | -11 -10 -10 ------------- Run | Scr Mat Min Turns Passed 1501 | 68 1107 326 Spaces Moved 637 | 39 507 91 Core 4 | 4 . . Treads 633 | 35 507 91 Legs . | . . . Wheels . | . . . Hover . | . . . Flight . | . . . Fastest Speed 50 | 50 160 240 Average Speed 195 | 148 179 309 Slowest Speed 320 | 160 240 320 Overloaded Moves . | . . . Propulsion Burnouts . | . . . Robots Hopped . | . . . Cave-ins Triggered . | . . . Exploration Rate (%) 42 | 4 89 33 Regions Visited 2 Branch Regions 1 Pre-discovered Areas 1 | . 1 . Known Exits Taken . | . . . Unknown Exits Taken 2 | 1 1 . Scrap Searched . | . . . Spaces Dug 17 | . 8 9 Terrain Destroyed 32 | . 17 15 Melee . | . . . Projectile . | . . . AOE 32 | . 17 15 Terrain Rammed . | . . . Walls Destroyed . | . . . Machines Disabled . | . . . Actions | -11 -10 -10 --------- Run | Scr Mat Min Total 770 | 46 610 114 Wait 26 | . 23 3 Move 635 | 38 506 91 Hop . | . . . Pick Up 19 | 2 15 2 Fast Attach 9 | 6 3 . Attach 3 | . . 3 Detach 2 | . 2 . Swap 7 | . 5 2 Drop 6 | . 6 . Fire 63 | . 50 13 Melee . | . . . Ram . | . . . Kick . | . . . Crush . | . . . Escape Stasis . | . . . Rewire . | . . . Trap . | . . . Miscellaneous . | . . . Route ------- -11/Scrapyard -10/Materials (discovered 4 exits: [*Mat x2] / [*Min x2]) -10/Mines (discovered 2 exits: [*Mat x2]) History --------- Turn | Location | Event 3 | -11/Scrapyard | Discovered new exit (range 15) 69 | -11/Scrapyard | Entered Materials 303 | -10/Materials | Build established: Mutant 350 | -10/Materials | Discovered new exit (range 10) 657 | -10/Materials | Discovered new exit (range 16) 747 | -10/Materials | Core integrity fell below 50% 929 | -10/Materials | Discovered new exit (range 11) 929 | -10/Materials | Discovered new exit (range 19) 1176 | -10/Materials | Entered Mines 1195 | -10/Mines | Discovered new exit (range 7) 1237 | -10/Mines | Core integrity fell below 20% 1276 | -10/Mines | Lost 3 parts (1p1n1w) 1331 | -10/Mines | Discovered new exit (range 11) 1482 | -10/Mines | Assembled infested the area 1502 | -10/Mines | Destroyed by D-53 Grenadier with Mini Grenade Launcher Last Messages --------------- 01200_ K-01 Serf collects debris. 01209_ Critical hit (Burn: +37). 01227_ Assault Rifle destroyed. 01228_ Imp. Ion Engine destroyed. 01230_ Critical hit (Burn: +37). 01234_ Y-45 Defender suffers critical hit (Burn). 01237_ Y-45 Defender destroyed. 01237_ Switching to secondary target: Y-45 Defender. 01245_ Imp. Treads destroyed. 01245_ Y-45 Defender destroyed. 01255_ Acquired Lgt. Treads. 01331_ EXIT=FOUND 01465_ K-01 Serf collects debris. 01482_ ALERT: Infestation in the mines, dispatching Demolisher response squad. 01492_ C-30 ARC bursts open, deploying its payload. 01492_ D-53 Grenadier unfolds itself. 01493_ K-01 Serf collects debris. 01500_ Lgt. Assault Rifle destroyed. 01500_ K-01 Serf collects debris. Map ----- +----------------------------------------------------+ | | | | | | | | | ?????????????????????????????????????????????????? | | ?????????????????????????????????????????????????? | | ?????????????????????????????????????????????????? | | ?????????????????????????????????????????????????? | | ?????????????????????????????????????????????????? | | ?????????????????????????????????????????????????? | | ???####??????????????????????????????????????????? | | ??## ##??????????????????????????# ?????????????? | | ?## ##???????????????????????? ????????????? | | ## ###?????????????#####??? ????????????? | | # ##???????????## ##?# #????????????? | | < ########????# ## #?????????????? | | #???## #?????????????? | | ## ######k ##### #?????????????? | | #######????# ## #?????????????? | | #??????????# ##????????????? | | ##??????????# #????????????? | | ##???????????# #?????????????????? | | ##????????????## ##?????????????????? | | ##??????????????## #??????????????????? | | ##???????????????## dd #??????????????????? | | #????????????????### @ ##??????????????????? | | #??????????????????# #???????????????????? | | #??????????????????# #???????????????????? | | #??????????????????# #???????????????????? | | #??????????????????# ##???????????????????? | | #??????????????????#### ####????????????????????? | | #?????????????????????###???????????????????????? | | #######?????????????????????????????????????????? | | #?????????????????????????????????????????? | | ##### #?????????????????????????????????????????? | | #???????????????????????????????????????????????? | | #???????????????????????????????????????????????? | | #???????????????????????????????????????????????? | | #???????????????????????????????????????????????? | | #???????????????????????????????????????????????? | | ####????????????????????????????????????????????? | | #????????????????????????????????????????????? | | #????????????????????????????????????????????? | | #????????????????????????????????????????????? | | #????????????????????????????????????????????? | | #????????????????????????????????????????????? | | < #????????????????????????????????????????????? | | #????????????????????????????????????????????? | | #????????????????????????????????????????????? | | #????????????????????????????????????????????? | +----------------------------------------------------+ Best States ------------- Heat Dissipation 25 Energy Generation 12 Energy Capacity 265 Matter Stores 300 Matter Capacity 300 Sight Range 16 Terrain Scan Density 10 Evasion (%) 40 Targeting Accuracy 5 Recoil Reduction 2 Item Schematics ----------------- Huge Storage Unit | -10/Materials | Hacked Hcp. Storage Unit | -10/Materials | Hacked Robot Schematics ------------------ None Fabricated ------------ Nothing Alien Tech Used ----------------- None Achievements -------------- None Challenges ------------ None Game ------ Seed SuspensionPhasingCannon Manual? 0 Play Time 00:09:07 Cumulative 406.1 hours Start 2022.06.02 @ 15:12:07 End 2022.06.02 @ 19:18:03 Sessions 2 Manual Loads 0 Difficulty Rogue Special Mode None Game No. 542 Rogue 542 Adventurer 0 Explorer 0 Win Type - Total 9 Types 6/1/1/1/0/0/0/0/0 Lore% 89 Gallery% 90 Achievement% 75 Wizard Run 0 Options --------- ASCII 0 Keyboard 1 Movement Numpad Keybinds 0 Fullscreen 2 Font 24/Smallcaps Map View 76x50 Tactical HUD 1 Map Filters NONE Filters NONE Steam 1 RUN: 83152b73-d7bb-49af-860a-7fd6cb4ebdcd